bitfinex/quotes_SOLUSD_20250228
["timestamp","ask_amount","ask_price","bid_price","bid_amount"]
[1740752232247,0.14216157,143.97,143.83,129.66]
[1740752232462,1.82381838,143.97,143.83,129.66]
[1740752232746,3.82378892,144.0,143.84,18.79181043]
[1740752232944,9.9076,144.01,143.86,18.79181043]
[1740752233122,9.9076,144.01,143.86,20.79181043]
[1740752233123,44.65618768,144.01,143.86,20.79181043]
[1740752233323,44.65618768,144.01,143.86,0.14216157]
[1740752233547,3.4722,144.0,143.87,6.9507]
[1740752233958,12.1527,144.0,143.84,0.14216157]
[1740752234143,12.1527,144.0,143.84,7.09426157]
[1740752234342,20.0,143.97,143.87,0.14216157]
[1740752234556,20.0,143.97,143.86,312.0]
[1740752234873,20.0,143.97,143.83,129.66]
[1740752235168,20.0,143.95,143.84,12.26]
[1740752235470,1.82392837,143.94,143.84,12.26]
[1740752235669,32.1586,143.93,143.84,12.26]
[1740752235866,1.8243084,143.92,143.84,12.26]
[1740752236369,49.5281,143.93,143.84,12.26]
[1740752237368,33.98277146,143.93,143.84,12.26]
[1740752237748,2.0,143.92,143.84,12.26]
[1740752237949,1.82440356,143.91,143.84,12.26]
[1740752238159,1.8243189,143.92,143.84,12.26]
[1740752238354,12.1586,143.93,143.84,12.26]
[1740752238555,3.4739,143.93,143.84,12.26]
[1740752238850,3.4739,143.93,143.84,19.2121]
[1740752239254,3.4724,143.99,143.87,0.14216157]
[1740752239558,3.4724,143.99,143.89,7.09166157]
[1740752239756,3.4724,143.99,143.91,0.14216157]
[1740752240066,3.4724,143.99,143.93,0.14216157]
[1740752240262,3.4724,143.99,143.92,12.24]
[1740752240654,3.4724,143.99,143.93,312.0]
[1740752241149,3.4724,143.99,143.92,12.38216157]
[1740752241465,3.4724,143.99,143.93,18.79181043]
[1740752241666,12.1535,143.99,143.94,117.08]
[1740752241970,1.063,144.0,143.95,23.06216157]
[1740752242283,1.063,144.0,143.97,0.14216157]
[1740752242447,12.1429,144.12,144.01,39.71181043]
[1740752242648,34.81651951,144.11,144.03,18.79181043]
[1740752242945,34.76917603,144.15,144.05,2.0]
[1740752243153,34.92835157,144.19,144.08,39.71181043]
[1740752243463,38.39595157,144.19,144.08,21.06216157]
[1740752243666,47.06505157,144.19,144.07,0.14216157]
[1740752243870,54.76917603,144.15,144.06,117.08]
[1740752244044,34.31169602,144.14,144.06,117.08]
[1740752244250,20.0,144.12,144.06,117.08]
[1740752244566,20.0,144.11,144.06,117.08]
[1740752244768,20.0,144.11,144.01,12.24]
[1740752245152,54.81651951,144.11,144.01,12.24]
[1740752245748,3.4698,144.1,144.01,12.24]
[1740752245949,3.4698,144.1,144.02,39.71181043]
[1740752246168,1.82150327,144.18,144.03,2.0]
[1740752246169,34.84805188,144.17,144.03,2.0]
[1740752246349,34.84805188,144.17,144.07,20.92]
[1740752246550,43.51845188,144.17,144.03,0.14216157]
[1740752246766,38.39595157,144.19,144.08,0.14216157]
[1740752247067,0.03,144.12,144.09,129.24]
[1740752247669,0.03,144.12,144.09,441.24]
[1740752247853,0.03,144.12,144.09,117.02]
[1740752248047,0.03,144.12,144.04,12.22]
[1740752248248,2.03,144.12,144.04,12.22]
[1740752248472,3.85168319,144.12,144.04,12.22]
[1740752248647,1.85168319,144.12,144.04,12.22]
[1740752248855,34.81364895,144.15,144.04,12.22]
[1740752249043,20.0,144.1,144.04,12.22]
[1740752249960,20.0,144.1,143.99,1.45754607]
[1740752250160,20.0,144.06,143.95,2.0]
[1740752250361,20.0,144.06,143.94,5.45800228]
[1740752250667,20.0,144.06,143.96,2.0]
[1740752250872,20.0,144.06,143.95,22.92]
[1740752251248,20.0,144.06,143.94,1.45800228]
[1740752251450,21.81138729,144.05,143.93,116.96]
[1740752251671,90.13214041,144.09,143.93,116.96]
[1740752252173,20.98211606,144.09,143.96,2.0]
[1740752252358,34.50399569,144.08,143.94,20.64964886]
[1740752252575,34.50399569,144.08,143.93,116.96]
[1740752252755,34.50399569,144.08,143.96,2.0]
[1740752252956,34.50399569,144.08,143.97,22.10753805]
[1740752253173,34.50399569,144.08,143.93,116.96]
[1740752253572,3.44587233,144.05,143.88,14.2]
[1740752253879,0.14216157,144.04,143.89,1.4586065]
[1740752254177,9.7188,144.05,143.89,1.4586065]
[1740752254178,9.7188,144.05,143.93,2.0]
[1740752254373,4.6946,144.1,143.99,0.14216157]
[1740752254677,2.776,144.09,143.99,3.59978938]
[1740752254860,2.776,144.09,143.98,14.2]
[1740752254861,9.7161,144.09,143.98,15.65754532]
[1740752255174,9.7161,144.09,144.02,4.0]
[1740752255175,2.776,144.09,144.02,4.0]
[1740752255380,4.6946,144.1,144.02,4.0]
[1740752255381,2.7754,144.12,144.04,4.0]
[1740752255558,2.7754,144.12,144.04,2.0]
[1740752255760,2.7754,144.12,144.04,4.0]
[1740752255953,2.7754,144.12,144.03,24.10678083]
[1740752256153,2.7754,144.12,144.03,2.0]
[1740752256371,2.7754,144.12,144.04,5.45736193]
[1740752256565,2.7754,144.12,144.04,4.0]
[1740752257076,34.34839765,144.16,144.1,2.0]
[1740752257077,2.7746,144.16,144.1,2.0]
[1740752257263,2.7744,144.18,144.11,22.64964886]
[1740752257572,47.54650433,144.2,144.12,1.45644453]
[1740752257874,54.48130433,144.2,144.1,12.2]
[1740752258670,54.48130433,144.2,144.1,14.2]
[1740752258981,0.03,144.12,144.1,14.2]
[1740752259364,0.03,144.12,144.1,16.2]
[1740752259680,0.03,144.12,144.1,12.2]
[1740752259866,0.03,144.12,144.07,2.0]
[1740752260069,0.03,144.12,144.09,2.0]
[1740752260369,0.03,144.12,144.1,22.64964886]
[1740752260676,0.03,144.12,144.11,2.0]
[1740752260888,36.80749624,144.19,144.11,312.0]
[1740752261073,34.03329624,144.19,144.11,314.0]
[1740752261270,34.2815783,144.24,144.14,4.0]
[1740752261598,34.12930236,144.25,144.18,20.79181043]
[1740752261893,34.12388307,144.26,144.16,1.45561946]
[1740752262060,2.8027,144.26,144.17,18.64964886]
[1740752262255,2.8027,144.26,144.16,1.45561946]
[1740752262487,2.8027,144.26,144.11,1.45590807]
[1740752262488,2.0,144.25,144.11,1.45590807]
[1740752262685,2.0,144.25,144.11,3.45590807]
[1740752262900,2.0,144.23,144.1,13.63634553]
[1740752263078,2.0,144.23,144.1,14.18]
[1740752263274,2.0,144.23,144.1,12.18]
[1740752263472,2.0,144.23,144.1,14.18]
[1740752263661,3.42991325,144.25,144.1,14.18]
[1740752263662,2.0,144.22,144.1,12.18]
[1740752263866,2.0,144.2,144.07,1.45654268]
[1740752264079,9.7093,144.19,144.06,132.59684211]
[1740752264504,2.0,144.15,144.06,116.96]
[1740752265167,2.0,144.08,143.93,2.063]
[1740752265384,2.0,144.05,143.93,0.063]
[1740752265589,2.0,144.04,143.93,0.063]
[1740752265793,5.56323041,144.05,143.93,0.063]
[1740752265987,10.0639,144.06,143.94,2.0]
[1740752266189,5.2671,144.07,143.93,1.52128699]
[1740752266190,2.0,144.09,143.96,2.0]
[1740752266514,2.0,144.03,143.93,0.063]
[1740752266686,7.2866,144.0,143.93,0.063]
[1740752266992,2.0,143.87,143.84,0.063]
[1740752267175,2.0,143.85,143.71,2.0]
[1740752267374,2.0,143.86,143.79,312.0]
[1740752267569,36.7548167,143.9,143.72,2.0]
[1740752267780,34.8415524,143.94,143.77,20.0]
[1740752267998,34.5447813,143.95,143.83,18.64964886]
[1740752268195,34.5447813,143.95,143.82,6.9531]
[1740752268196,34.89649703,143.93,143.82,6.9531]
[1740752268396,34.7548167,143.9,143.78,12.18]
[1740752268595,34.80895789,143.91,143.78,332.59488388]
[1740752268802,34.07025683,143.92,143.79,18.64964886]
[1740752269001,34.07025683,143.92,143.8,1.45947738]
[1740752269205,34.07025683,143.92,143.81,18.64964886]
[1740752269586,36.26811483,143.91,143.78,12.18]
[1740752269798,36.26811483,143.91,143.79,1.45981757]
[1740752270097,2.7789,143.95,143.81,6.9536]
[1740752270274,9.8275,143.99,143.85,18.79181043]
[1740752270471,4.23645694,144.03,143.88,0.14216157]
[1740752270693,4.23645694,144.03,143.9,18.79181043]
[1740752270906,2.0,144.06,143.92,18.64964886]
[1740752270907,2.7769,144.05,143.92,18.64964886]
[1740752271202,0.063,144.01,143.94,18.64964886]
[1740752271411,0.063,144.01,143.95,13.63796123]
[1740752271777,0.063,144.01,143.95,12.18]
[1740752272006,20.0,144.0,143.9,312.0]
[1740752272301,1.45915694,143.99,143.9,312.0]
[1740752272875,20.0,143.98,143.87,12.18]
[1740752273080,1.45915694,143.97,143.87,12.18]
[1740752273798,21.45915694,143.97,143.87,12.18]
[1740752274005,1.45915694,143.96,143.87,12.18]
[1740752275017,2.0,143.93,143.79,12.18]
[1740752275204,3.45915694,143.92,143.79,12.18]
[1740752275414,2.0,143.91,143.79,12.18]
[1740752275706,1.45915694,143.9,143.79,12.18]
[1740752275889,1.45915694,143.9,143.8,312.0]
[1740752276202,3.4748,143.89,143.8,312.0]
[1740752276600,4.93395694,143.89,143.8,312.0]
[1740752276906,13.62105694,143.89,143.8,312.0]
[1740752277313,15.62105694,143.89,143.76,116.98]
[1740752277783,17.62105694,143.89,143.76,116.98]
[1740752277979,3.4724,143.99,143.81,18.79181043]
[1740752278201,4.93155694,143.99,143.83,0.14216157]
[1740752278398,4.93155694,143.99,143.84,1.45902954]
[1740752278575,2.0,143.97,143.83,12.18]
[1740752278792,1.45915694,143.96,143.83,13.63940157]
[1740752279193,1.45915694,143.96,143.84,18.64964886]
[1740752279420,1.45915694,143.98,143.83,13.63940157]
[1740752279824,2.0,143.96,143.83,12.18]
[1740752279993,1.45915694,143.95,143.83,12.18]
[1740752280195,20.62064881,143.84,143.83,312.0]
[1740752280399,20.62064881,143.84,143.76,116.98]
[1740752280727,41.24129763,143.85,143.76,116.98]
[1740752281022,41.24129763,143.85,143.77,18.64964886]
[1740752281326,20.0,143.82,143.76,116.98]
[1740752281629,20.0,143.82,143.72,0.03]
[1740752281630,34.00533651,143.81,143.72,0.03]
[1740752282213,3.476,143.84,143.72,0.76334198]
[1740752282417,3.476,143.84,143.73,18.79181043]
[1740752282624,3.476,143.84,143.75,18.79181043]
[1740752282919,41.24129763,143.85,143.78,20.92]
[1740752283221,41.24129763,143.85,143.79,19.52242023]
[1740752283422,41.24129763,143.85,143.84,312.0]
[1740752283624,41.24129763,143.85,143.79,19.52242023]
[1740752283625,44.71709763,143.85,143.72,0.03]
[1740752283828,41.24129763,143.85,143.74,2.14216157]
[1740752284003,41.24129763,143.85,143.76,18.79181043]
[1740752284203,41.24129763,143.85,143.76,25.60554886]
[1740752284403,41.24129763,143.85,143.77,0.73150235]
[1740752284708,41.24129763,143.85,143.79,0.14216157]
[1740752284913,41.24129763,143.85,143.84,21.06216157]
[1740752285220,41.24129763,143.85,143.84,117.20216157]
[1740752285698,41.24129763,143.85,143.84,117.93186559]
[1740752286194,0.09148444,143.88,143.87,18.79181043]
[1740752286400,18.93445735,143.96,143.87,19.51960908]
[1740752286698,20.0,143.99,143.94,312.0]
[1740752286917,5.29535999,144.0,143.94,312.0]
[1740752287224,5.29535999,144.0,143.88,12.18]
[1740752287428,20.0,143.97,143.88,12.18]
[1740752288222,3.4724,143.99,143.88,12.18]
[1740752288404,0.063,144.01,143.89,0.87085754]
[1740752288606,0.063,144.01,143.9,18.64964886]
[1740752288917,20.0,143.98,143.89,0.72768574]
[1740752289121,20.0,143.98,143.88,12.90830999]
[1740752289428,1.82333768,143.97,143.88,12.18]
[1740752289637,1.82333768,143.97,143.84,117.06]
[1740752290020,1.82333768,143.97,143.86,312.0]
[1740752290219,20.0,143.94,143.86,312.0]
[1740752290420,0.063,144.01,143.88,39.71181043]
[1740752290624,0.063,144.01,143.9,0.14216157]
[1740752290932,0.063,144.01,143.91,0.7274987]
[1740752291318,0.063,144.01,143.92,18.79181043]
[1740752291531,0.063,144.01,143.94,18.79181043]
[1740752291703,0.063,144.01,143.96,18.79181043]
[1740752292028,0.063,144.01,143.98,18.79181043]
[1740752292236,0.063,144.01,143.99,0.72575616]
[1740752292410,0.063,144.01,144.0,18.79181043]
[1740752292722,167.93608549,144.11,144.04,39.71181043]
[1740752292913,167.93608549,144.11,144.05,33.80428833]
[1740752293119,167.93608549,144.11,144.07,0.14216157]
[1740752293321,167.93608549,144.11,144.07,18.79181043]
[1740752293630,167.93608549,144.11,143.95,10.9468]
[1740752293805,167.93608549,144.11,143.96,2.72504841]
[1740752294115,167.93608549,144.11,144.01,39.71181043]
[1740752294312,4.0,144.17,144.02,12.16]
[1740752294628,10.4043,144.18,143.87,2.0]
[1740752294629,13.8021,144.08,143.87,2.0]
[1740752294844,0.03,143.97,143.87,4.72774064]
[1740752295129,0.03,143.97,143.96,20.0]
[1740752295325,11.62423618,144.16,143.97,22.0]
[1740752295639,11.62423618,144.16,144.01,0.14216157]
[1740752295805,11.62423618,144.16,144.02,12.88431978]
[1740752296005,9.8021,144.16,144.03,0.14216157]
[1740752296327,9.6486,144.19,144.05,39.71181043]
[1740752296534,10.3994,144.24,144.11,312.0]
[1740752296535,4.1605,144.22,144.11,312.0]
[1740752296709,1.82033921,144.21,144.11,324.16]
[1740752296910,9.9769,144.24,144.11,324.16]
[1740752297104,4.16,144.23,144.11,342.95181043]
[1740752297432,0.03,144.26,144.11,363.87181043]
[1740752297605,18.64964886,144.24,144.11,324.16]
[1740752297809,4.1614,144.18,144.11,324.16]
[1740752298118,20.0,144.18,144.11,312.0]
[1740752298311,21.82119071,144.18,144.11,312.0]
[1740752298826,1.82119071,144.18,144.05,0.14216157]
[1740752299009,24.1611,144.19,144.07,0.14216157]
[1740752299208,24.1611,144.19,144.08,0.72349771]
[1740752299408,0.09357589,144.12,144.08,0.72349771]
[1740752299600,0.09357589,144.12,144.07,20.0]
[1740752299803,0.09357589,144.12,144.08,0.72398986]
[1740752300022,0.09357589,144.12,144.08,2.14216157]
[1740752300228,0.09357589,144.12,144.1,0.14216157]
[1740752300407,0.09357589,144.12,144.08,0.72261055]
[1740752300828,0.09357589,144.12,144.09,0.14216157]
[1740752301132,0.09357589,144.12,144.08,0.72300677]
[1740752301638,0.09357589,144.12,144.05,0.72345266]
[1740752301836,0.09357589,144.12,144.05,312.0]
[1740752302010,0.09357589,144.12,144.06,18.79181043]
[1740752302207,0.09357589,144.12,144.07,0.72277359]
[1740752302402,0.09357589,144.12,144.11,20.14216157]
[1740752302733,0.09357589,144.12,144.11,31.65455555]
[1740752302931,1.8205143,144.24,144.12,0.14216157]
[1740752303126,4.1597,144.25,144.13,0.72139411]
[1740752303436,22.46970154,144.24,144.11,12.14]
[1740752303730,20.79181043,144.2,144.04,117.0]
[1740752303905,18.79181043,144.18,144.04,117.0]
[1740752304108,14.5671,144.16,144.04,117.72516179]
[1740752304322,1.82163001,144.15,144.04,117.0]
[1740752305404,1.82163001,144.15,144.07,312.0]
[1740752305708,20.0,144.13,144.04,117.0]
[1740752305931,20.0,144.11,144.04,117.0]
[1740752306140,1.82234226,144.1,143.98,12.14]
[1740752306309,20.0,144.07,143.96,116.9]
[1740752306514,1.82282367,144.06,143.96,116.9]
[1740752307031,20.0,144.05,143.96,116.9]
[1740752307216,1.82290412,144.04,143.96,116.9]
[1740752307411,20.0,144.05,143.96,116.9]
[1740752307743,21.82286722,144.07,143.96,116.9]
[1740752307921,15.834,144.1,143.96,124.57307299]
[1740752308111,12.19399879,144.16,144.01,18.79181043]
[1740752308305,1.82148048,144.2,144.04,0.14216157]
[1740752308529,1.82085155,144.21,144.12,312.0]
[1740752308877,20.0,144.18,144.12,312.0]
[1740752309156,5.98145155,144.21,144.07,0.14216157]
[1740752309157,1.82101391,144.21,144.07,0.14216157]
[1740752309333,5.0785,144.24,144.09,18.79181043]
[1740752309533,1.82021697,144.23,144.1,12.86215046]
[1740752309858,1.82021697,144.23,144.1,33.06]
[1740752310032,20.0,144.21,144.1,12.14]
[1740752310233,1.82084683,144.2,144.1,19.0795]
[1740752310432,5.0785,144.24,144.12,18.79181043]
[1740752310658,5.0785,144.24,144.13,0.72208018]
[1740752310861,0.03,144.26,144.13,0.72208018]
[1740752311163,24.6586758,144.26,144.1,19.0795]
[1740752311334,1.84972694,144.26,144.11,19.51458843]
[1740752311861,0.03,144.26,144.16,20.92]
[1740752312046,0.03,144.26,144.2,312.0]
[1740752312579,0.03,144.26,144.19,6.9352]
[1740752312770,1.84974109,144.26,144.17,116.9]
[1740752312944,20.0,144.24,144.17,116.9]
[1740752313261,1.82023706,144.23,144.17,116.9]
[1740752313633,20.0,144.24,144.17,116.9]
[1740752313832,1.85051488,144.26,144.17,116.9]
[1740752314833,0.03,144.26,144.17,123.8361]
[1740752315348,1.81988688,144.25,144.17,116.9]
[1740752315661,1.81988688,144.25,144.17,428.9]
[1740752315876,1.81988688,144.25,144.17,116.9]
[1740752316236,4.1597,144.24,144.17,116.9]
[1740752316445,1.82060999,144.23,144.17,116.9]
[1740752317542,20.0,144.21,144.09,116.86]
[1740752317744,1.82102755,144.2,144.09,116.86]
[1740752318341,5.98202755,144.2,144.09,123.8]
[1740752318964,1.82102755,144.2,144.12,0.063]
[1740752319169,30.7815,144.21,144.12,0.063]
[1740752319170,10.7815,144.21,144.12,0.063]
[1740752319869,0.03,144.27,144.14,18.79181043]
[1740752320079,1.84993624,144.27,144.15,12.12]
[1740752320270,25.9798463,144.25,144.15,19.0571]
[1740752320572,5.9798463,144.25,144.12,0.7856386]
[1740752320750,5.9798463,144.25,144.13,6.9381]
[1740752320949,1.85051832,144.27,144.16,0.14216157]
[1740752321169,0.03,144.27,144.18,18.79181043]
[1740752321373,0.03,144.27,144.17,12.84130058]
[1740752321573,0.03,144.27,144.18,18.79181043]
[1740752321777,0.0001,144.26,144.25,39.71181043]
[1740752321952,0.0001,144.27,144.26,0.14216157]
[1740752322377,0.0001,144.27,144.26,312.0]
[1740752323753,25.9755489,144.35,144.26,312.0]
[1740752323977,20.0,144.32,144.26,312.0]
[1740752324178,1.8189489,144.35,144.26,312.0]
[1740752324474,25.9755489,144.35,144.26,312.0]
[1740752324651,20.0,144.32,144.26,312.0]
[1740752324845,1.81931672,144.31,144.25,116.84]
[1740752325277,0.14216157,144.3,144.16,0.72107878]
[1740752325490,1.82006123,144.29,144.15,6.9372]
[1740752325774,18.79181043,144.28,144.15,6.9372]
[1740752325979,1.82024854,144.27,144.13,116.8]
[1740752326184,1.82024854,144.27,144.13,123.7381]
[1740752326472,1.82024854,144.27,144.13,117.52247976]
[1740752326679,5.97914854,144.27,144.13,141.80587976]
[1740752326980,1.82024854,144.27,144.13,123.738]
[1740752327158,1.82036197,144.26,144.13,123.738]
[1740752327354,18.79181043,144.25,144.13,116.8]
[1740752327560,1.82072204,144.24,144.13,116.8]
[1740752327777,1.82072204,144.24,144.14,312.0]
[1740752328364,4.16,144.23,144.14,312.0]
[1740752328674,1.82066081,144.24,144.14,318.9375]
[1740752328858,1.8202112,144.23,144.14,6.9375]
[1740752329064,20.0,144.24,144.13,123.7381]
[1740752329385,1.82045982,144.23,144.13,116.8]
[1740752329573,20.0,144.24,144.13,116.8]
[1740752329757,1.82060846,144.23,144.13,116.8]
[1740752329953,20.0,144.24,144.13,116.8]
[1740752330176,20.0,144.22,144.13,116.8]
[1740752330375,4.1605,144.21,144.13,116.8]
[1740752330579,20.0,144.22,144.13,123.7381]
[1740752330889,24.1603,144.22,144.13,123.7381]
[1740752331255,20.0,144.22,144.13,123.7381]
[1740752331458,24.1603,144.22,144.13,123.7381]
[1740752331866,34.561,144.22,144.13,116.8]
[1740752332286,14.565,144.18,144.12,0.063]
[1740752332470,1.82143232,144.17,144.12,0.063]
[1740752333088,1.82143232,144.17,144.13,0.063]
[1740752333975,18.79181043,144.16,144.13,0.063]
[1740752334185,1.82180695,144.15,144.13,0.063]
[1740752334379,4.1626,144.14,144.12,0.063]
[1740752334686,18.64964886,144.11,143.98,0.063]
[1740752334889,1.96460776,144.1,144.02,312.0]
[1740752335110,18.64964886,144.09,143.98,0.063]
[1740752335288,0.14216157,144.04,143.98,0.063]
[1740752335596,1.82337358,144.03,143.98,0.063]
[1740752335778,20.0,144.01,143.98,0.063]
[1740752336083,1.82337358,144.03,143.98,0.063]
[1740752336084,1.82341343,144.03,143.98,0.063]
[1740752336388,20.0,143.98,143.86,6.9507]
[1740752336592,20.0,143.97,143.85,9.90040669]
[1740752336771,1.82432505,143.96,143.85,9.90040669]
[1740752337089,1.82432505,143.96,143.85,6.9516]
[1740752337590,18.64964886,144.0,143.87,18.64964886]
[1740752337591,1.82418367,144.0,143.87,18.64964886]
[1740752337792,1.82418367,144.0,143.88,12.80825042]
[1740752338088,1.82341684,144.03,143.94,312.0]
[1740752338296,2.0,143.91,143.82,0.063]
[1740752338485,2.14216157,143.87,143.79,9.90040669]
[1740752338667,1.82563292,143.86,143.79,9.90040669]
[1740752338898,1.82533208,143.88,143.79,9.90040669]
[1740752339215,40.79181043,143.87,143.79,9.90040669]
[1740752339408,20.79181043,143.84,143.79,9.90040669]
[1740752339592,1.82600705,143.83,143.79,9.90040669]
[1740752340020,1.82556754,143.85,143.73,6.9573]
[1740752340215,18.79181043,143.84,143.72,0.03]
[1740752340400,24.96371043,143.82,143.72,0.03]
[1740752340605,1.82641161,143.81,143.72,0.03]
[1740752340803,18.79181043,143.8,143.72,0.03]
[1740752341004,1.82650417,143.79,143.72,0.03]
[1740752341316,18.79181043,143.75,143.72,0.03]
[1740752341616,1.82716284,143.74,143.62,136.5]
[1740752341919,0.14216157,143.71,143.6,136.563]
[1740752342210,1.82764755,143.7,143.6,0.063]
[1740752342415,1.82702956,143.75,143.63,20.0]
[1740752342718,1.82702956,143.75,143.63,136.5]
[1740752343306,1.82702956,143.75,143.64,0.73515185]
[1740752343491,1.82702956,143.75,143.63,137.23467921]
[1740752343894,1.82650518,143.78,143.64,18.79181043]
[1740752344122,1.82650518,143.78,143.65,0.73405392]
[1740752344309,1.82650518,143.78,143.69,318.9591]
[1740752344831,1.82650518,143.78,143.69,312.0]
[1740752345191,1.82650518,143.78,143.69,318.9592]
[1740752345396,18.79181043,143.77,143.68,12.1]
[1740752345622,1.82674201,143.76,143.68,12.1]
[1740752345805,0.063,143.75,143.68,19.0598]
[1740752346526,0.063,143.75,143.69,0.73454807]
[1740752346732,0.063,143.75,143.7,0.73373947]
[1740752346932,0.0001,143.75,143.73,20.0]
[1740752347134,0.0001,143.75,143.74,21.52341036]
[1740752347430,10.72618082,143.86,143.77,20.0]
[1740752347621,10.78918082,143.9,143.81,20.14216157]
[1740752347823,10.78918082,143.9,143.83,0.14216157]
[1740752348005,10.78918082,143.9,143.81,273.58]
[1740752348211,10.78918082,143.9,143.81,253.58]
[1740752348400,10.78918082,143.9,143.85,312.0]
[1740752348606,1.8244321,143.89,143.82,6.9531]
[1740752348833,10.78918082,143.9,143.82,6.9531]
[1740752349018,10.78918082,143.9,143.82,160.8359]
[1740752349219,10.78918082,143.9,143.83,19.37999192]
[1740752349426,10.78918082,143.9,143.82,160.8359]
[1740752349427,10.78918082,143.9,143.82,143.4531]
[1740752349633,0.063,143.9,143.82,143.4531]
[1740752349940,0.063,143.9,143.83,19.5219592]
[1740752350157,0.063,143.9,143.82,136.5]
[1740752350326,0.063,143.9,143.83,136.5]
[1740752350509,0.063,143.9,143.81,117.08]
[1740752350708,1.88771544,143.9,143.81,253.58]
[1740752350942,0.063,143.9,143.81,260.5335]
[1740752351121,0.063,143.9,143.82,18.79181043]
[1740752351326,0.063,143.9,143.83,0.7295091]
[1740752351627,0.063,143.9,143.83,136.5]
[1740752352132,0.063,143.9,143.81,253.58]
[1740752352433,0.063,143.9,143.81,117.08]
[1740752352732,1.88772396,143.9,143.81,117.08]
[1740752353142,0.063,143.9,143.81,253.58]
[1740752353331,1.8872339,143.9,143.81,253.58]
[1740752353637,1.8872339,143.9,143.81,117.08]
[1740752353811,14.64433501,143.93,143.81,117.08]
[1740752354035,1.09404958,143.92,143.81,117.08]
[1740752354252,1.09404958,143.92,143.81,119.02616499]
[1740752354453,5.26324958,143.92,143.82,1.94616499]
[1740752354762,5.26324958,143.92,143.82,312.0]
[1740752355061,1.09404958,143.92,143.81,253.58]
[1740752355249,0.05383501,143.94,143.81,117.08]
[1740752355250,4.22243501,143.93,143.81,117.08]
[1740752355438,20.0,143.89,143.75,14.04616499]
[1740752355641,20.0,143.89,143.71,136.5]
[1740752355642,20.0,143.83,143.73,117.06]
[1740752355939,20.0,143.78,143.71,312.0]
[1740752356249,1.09404958,143.77,143.67,1.94616499]
[1740752356445,1.09404958,143.77,143.64,255.50616499]
[1740752356651,20.0,143.74,143.64,119.00616499]
[1740752356861,21.09404958,143.73,143.64,117.06]
[1740752357035,20.14216157,143.72,143.64,117.06]
[1740752357237,1.09404958,143.71,143.6,136.563]
[1740752357439,0.14216157,143.7,143.6,0.063]
[1740752357660,0.14216157,143.68,143.6,0.063]
[1740752357844,0.14216157,143.65,143.6,0.063]
[1740752358052,0.14216157,143.63,143.6,0.063]
[1740752358256,20.14216157,143.61,143.57,0.03]
[1740752358466,0.14216157,143.59,143.57,0.03]
[1740752358672,25.41501115,143.58,143.57,0.03]
[1740752359168,25.27284958,143.58,143.5,312.0]
[1740752359469,0.14216157,143.57,143.48,12.13]
[1740752359768,1.09404958,143.56,143.49,1.97616499]
[1740752359949,1.09404958,143.56,143.49,0.03]
[1740752360552,4.18,143.54,143.49,0.03]
[1740752360755,0.14216157,143.52,143.49,0.03]
[1740752360956,1.09404958,143.51,143.49,0.03]
[1740752361163,0.14216157,143.5,143.49,0.03]
[1740752361349,1.09404958,143.51,143.48,0.03]
[1740752361557,0.14216157,143.5,143.48,0.03]
[1740752361755,1.09404958,143.49,143.48,0.03]
[1740752362073,0.14216157,143.52,143.48,0.03]
[1740752362252,1.09404958,143.51,143.48,0.03]
[1740752362651,0.14216157,143.49,143.48,0.03]
[1740752362846,1.09404958,143.49,143.48,0.03]
[1740752363174,20.0,143.47,143.4,1.94616499]